Workbook

Sheet EXH NEGOCIOS
B3: EXHIBIDOR NEGOCIOS
A6: PRODUCTO | B6: CANTIDAD | C6: PRECIO AL PUBLICO | D6: PRECIO MAYOREO 37%- | E6: TOTAL CON EL 37%-
A7: MAQUILLAJE LIQUIDO 01 | B7: 1 | C7: 152 | D7: =C7-(C7*37%) -> 95.76 | E7: =B7*D7 -> 95.76
A8: MAQUILLAJE LIQUIDO 02 | B8: 1 | C8: 152 | D8: 95.76 | E8: 95.76
A9: MAQUILLAJE LIQUIDO 03 | B9: 1 | C9: 152 | D9: 95.76 | E9: 95.76
A10: MAQUILLAJE LIQUIDO 04 | B10: 1 | C10: 152 | D10: 95.76 | E10: 95.76
A11: MAQUILLAJE LIQUIDO 05 | B11: 1 | C11: 152 | D11: 95.76 | E11: 95.76
A12: MAQUILLAJE LIQUIDO 06 | B12: 1 | C12: 152 | D12: 95.76 | E12: 95.76
A13: MAQUILLAJE LIQUIDO 10 | B13: 1 | C13: 152 | D13: 95.76 | E13: 95.76
A14: MAQUILLAJE LIQUIDO 11 | B14: 1 | C14: 152 | D14: 95.76 | E14: 95.76
A15: MAQUILLAJE LIQUIDO 12 | B15: 1 | C15: 152 | D15: 95.76 | E15: 95.76
A17: PRIMER PARA ROSTRO | B17: 3 | C17: 177 | D17: =C17-(C17*37%) -> 111.51 | E17: =B17*D17 -> 334.53
A18: ESPONJA PIQUITOS DE COLORES | B18: 1 | C18: 136 | D18: 85.68 | E18: 85.68
A19: CONTORNEADOR 01-CLARO A MEDIO | B19: 1 | C19: 125 | D19: 78.75 | E19: 78.75
A20: CONTORNEADOR 02-MEDIO A BRONCEADO | B20: 2 | C20: 125 | D20: 78.75 | E20: 157.5
A21: CONTORNEADOR 03-BRONCEADO A OSCURO | B21: 1 | C21: 125 | D21: 78.75 | E21: 78.75
A22: MAQUILLAJE COMPACTO 01 TRANSLUCIDO | B22: 2 | C22: 107 | D22: 67.41 | E22: 134.82
A23: MAQUILLAJE COMPACTO 02 FRESCO | B23: 2 | C23: 107 | D23: 67.41 | E23: 134.82
A24: MAQUILLAJE COMPACTO 03 NUDE | B24: 2 | C24: 107 | D24: 67.41 | E24: 134.82
A25: MAQUILLAJE COMPACTO 04 SAND | B25: 2 | C25: 107 | D25: 67.41 | E25: 134.82
A26: MAQUILLAJE COMPACTO 05 PEBBLE | B26: 2 | C26: 107 | D26: 67.41 | E26: 134.82
A27: MAQUILLAJE COMPACTO 06 NATURAL BEIGE | B27: 2 | C27: 107 | D27: 67.41 | E27: 134.82
A28: MAQUILLAJE COMPACTO 07 CARAMEL | B28: 1 | C28: 107 | D28: 67.41 | E28: 67.41
A29: MAQUILLAJE COMPACTO 08 WHEAT | B29: 1 | C29: 107 | D29: 67.41 | E29: 67.41
A30: MAQUILLAJE COMPACTO 09 SHELL BEIGE | B30: 1 | C30: 107 | D30: 67.41 | E30: 67.41
A31: MAQUILLAJE COMPACTO 10 HONEY | B31: 1 | C31: 107 | D31: 67.41 | E31: 67.41
A32: MAQUILLAJE COMPACTO 11 ALMOND | B32: 1 | C32: 107 | D32: 67.41 | E32: 67.41
A33: MAQUILLAJE COMPACTO 12 SOFTAN | B33: 1 | C33: 107 | D33: 67.41 | E33: 67.41
A34: MAQUILLAJE COMPACTO 13 BRONZE | B34: 1 | C34: 107 | D34: 67.41 | E34: 67.41
A35: MAQUILLAJE COMPACTO 14 CAPUCCINO | B35: 1 | C35: 107 | D35: 67.41 | E35: 67.41
A36: MAQUILLAJE COMPACTO 15 COCOA | B36: 1 | C36: 107 | D36: 67.41 | E36: 67.41
D37: 0 | E37: 0
A38: SOMBRAS QUINTETO 01 BUENA VIBRA | B38: 1 | C38: 65 | D38: 40.95 | E38: 40.95
A39: SOMBRAS QUINTETO 04 FLUYE | B39: 1 | C39: 65 | D39: 40.95 | E39: 40.95
A40: SOMBRAS QUINTETO 07 CREO EN MI | B40: 1 | C40: 65 | D40: 40.95 | E40: 40.95
A41: SOMBRAS QUINTETO 10 SOY VALIOSA | B41: 1 | C41: 65 | D41: 40.95 | E41: 40.95
A42: SOMBRAS QUINTETO 20 TODO PASA | B42: 1 | C42: 65 | D42: 40.95 | E42: 40.95
A43: SOMBRAS QUINTETO 15 | B43: 1 | C43: 65 | D43: 40.95 | E43: 40.95
A44: SOMBRAS QUINTETO 25 SE TÚ | B44: 1 | C44: 65 | D44: 40.95 | E44: 40.95
A45: SOMBRAS QUINTETO 35 SIN MIEDO | B45: 1 | C45: 65 | D45: 40.95 | E45: 40.95
A47: PRIMER PARA OJOS | B47: 3 | C47: 48 | D47: =C47-(C47*37%) -> 30.24 | E47: =B47*D47 -> 90.72
A48: SOMBRA EN POLVO 01 | B48: 1 | C48: 23 | D48: 14.49 | E48: 14.49
A49: SOMBRA EN POLVO 02 | B49: 1 | C49: 23 | D49: 14.49 | E49: 14.49
A50: SOMBRA EN POLVO 03 | B50: 1 | C50: 23 | D50: 14.49 | E50: 14.49
A51: SOMBRA EN POLVO 15 | B51: 1 | C51: 23 | D51: 14.49 | E51: 14.49
A52: SOMBRA EN POLVO 16 | B52: 1 | C52: 23 | D52: 14.49 | E52: 14.49
A53: SOMBRA EN POLVO 28 | B53: 1 | C53: 23 | D53: 14.49 | E53: 14.49
A54: SOMBRA EN POLVO 07 | B54: 1 | C54: 23 | D54: 14.49 | E54: 14.49
A55: SOMBRA EN POLVO 12 | B55: 1 | C55: 23 | D55: 14.49 | E55: 14.49
A56: SOMBRA EN POLVO 13 | B56: 1 | C56: 23 | D56: 14.49 | E56: 14.49
A58: GLITTER 01 | B58: 1 | C58: 25 | D58: =C58-(C58*37%) -> 15.75 | E58: =B58*D58 -> 15.75
A59: GLITTER 02 | B59: 1 | C59: 25 | D59: 15.75 | E59: 15.75
A60: GLITTER 03 | B60: 1 | C60: 25 | D60: 15.75 | E60: 15.75
A61: GLITTER 06 | B61: 1 | C61: 25 | D61: 15.75 | E61: 15.75
A62: GLITTER 18 | B62: 1 | C62: 25 | D62: 15.75 | E62: 15.75
A63: GLITTER 22 | B63: 1 | C63: 25 | D63: 15.75 | E63: 15.75
A64: GLITTER 24 | B64: 1 | C64: 25 | D64: 15.75 | E64: 15.75
A65: GLITTER 25 | B65: 1 | C65: 25 | D65: 15.75 | E65: 15.75
A66: GLITTER 28 | B66: 1 | C66: 25 | D66: 15.75 | E66: 15.75
A68: SOMBRA INDIVIDUAL 02 | B68: 1 | C68: 48 | D68: =C68-(C68*37%) -> 30.24 | E68: =B68*D68 -> 30.24
A69: SOMBRA INDIVIDUAL 82 | B69: 1 | C69: 48 | D69: 30.24 | E69: 30.24
A70: SOMBRA INDIVIDUAL 06 | B70: 1 | C70: 48 | D70: 30.24 | E70: 30.24
A71: SOMBRA INDIVIDUAL 09 | B71: 1 | C71: 48 | D71: 30.24 | E71: 30.24
A73: SOMBRA PARA CEJA 08 CLAVO | B73: 1 | C73: 46 | D73: =C73-(C73*37%) -> 28.98 | E73: =B73*D73 -> 28.98
A74: SOMBRA PARA CEJA 09 FRIJOL NEGRO | B74: 1 | C74: 46 | D74: 28.98 | E74: 28.98
E75: 0
A76: ESPONJA PEONZA | B76: 1 | C76: 48 | D76: =C76-(C76*37%) -> 30.24 | E76: 30.24
A77: ESPONJA GOTA | B77: 1 | C77: 48 | D77: 30.24 | E77: 30.24
A78: ESPONJA GEMA | B78: 1 | C78: 48 | D78: 30.24 | E78: 30.24
A79: ESPONJA PETALO | B79: 1 | C79: 48 | D79: 30.24 | E79: 30.24
A81: ILUMINADOR 02 TAURO | B81: 1 | C81: 60 | D81: =C81-(C81*37%) -> 37.8 | E81: =B81*D81 -> 37.8
A82: ILUMINADOR 03 GEMINIS | B82: 1 | C82: 60 | D82: 37.8 | E82: 37.8
A83: ILUMINADOR 08 CAPRICORNIO | B83: 1 | C83: 60 | D83: 37.8 | E83: 37.8
A84: ILUMINADOR 05 LEO | B84: 1 | C84: 60 | D84: 37.8 | E84: 37.8
A85: ILUMINADOR 06 VIRGO | B85: 1 | C85: 60 | D85: 37.8 | E85: 37.8
A86: ILUMINADOR 09 ACUARIO | B86: 1 | C86: 60 | D86: 37.8 | E86: 37.8
A88: BRONCEADOR 01 LIBRA | B88: 1 | C88: 54 | D88: =C88-(C88*37%) -> 34.02 | E88: =B88*D88 -> 34.02
A89: BRONCEADOR 02 ESCORPION | B89: 1 | C89: 54 | D89: 34.02 | E89: 34.02
A90: BRONCEADOR 03 HERCULES | B90: 1 | C90: 54 | D90: 34.02 | E90: 34.02
A91: BRONCEADOR 04 PERSEO | B91: 1 | C91: 54 | D91: 34.02 | E91: 34.02
A92: BRONCEADOR 05 CISNE | B92: 1 | C92: 54 | D92: 34.02 | E92: 34.02
A93: BRONCEADOR 06 PEGASO | B93: 1 | C93: 54 | D93: 34.02 | E93: 34.02
A95: RUBOR 03 SIENA | B95: 1 | C95: 54 | D95: =C95-(C95*37%) -> 34.02 | E95: =B95*D95 -> 34.02
A96: RUBOR 04 NATURAL | B96: 1 | C96: 54 | D96: 34.02 | E96: 34.02
A97: RUBOR 06 TOSTADO | B97: 1 | C97: 54 | D97: 34.02 | E97: 34.02
A98: RUBOR 07 TERRACOTA | B98: 1 | C98: 54 | D98: 34.02 | E98: 34.02
A99: RUBOR 08 CHEDRON | B99: 1 | C99: 54 | D99: 34.02 | E99: 34.02
A100: RUBOR 09 MARRON | B100: 1 | C100: 54 | D100: 34.02 | E100: 34.02
A101: RUBOR 10 FRAMBUESA | B101: 1 | C101: 54 | D101: 34.02 | E101: 34.02
A102: RUBOR 18 CIRUELA | B102: 1 | C102: 54 | D102: 34.02 | E102: 34.02
A103: RUBOR 11 BRONCE | B103: 1 | C103: 54 | D103: 34.02 | E103: 34.02
A104: RUBOR 05 DURAZNO | B104: 1 | C104: 54 | D104: 34.02 | E104: 34.02
A106: POLVO FIJADOR | B106: 1 | C106: 94 | D106: =C106-(C106*37%) -> 59.22 | E106: =B106*D106 -> 59.22
A107: POLVO TRASLUCIDO 01 CHAC MOOL | B107: 1 | C107: 94 | D107: 59.22 | E107: 59.22
A108: POLVO TRASLUCIDO 02 SOLMAR | B108: 1 | C108: 94 | D108: 59.22 | E108: 59.22
A109: POLVO TRASLUCIDO 03 MARIETAS | B109: 1 | C109: 94 | D109: 59.22 | E109: 59.22
A111: LABIAL MATE 01 MILAN | B111: 1 | C111: 46 | D111: =C111-(C111*37%) -> 28.98 | E111: =B111*D111 -> 28.98
A112: LABIAL MATE 02 MALIBU | B112: 1 | C112: 46 | D112: 28.98 | E112: 28.98
A113: LABIAL MATE 03 ESTUMBUL | B113: 1 | C113: 46 | D113: 28.98 | E113: 28.98
A114: LABIAL MATE 04 TORONTO | B114: 1 | C114: 46 | D114: 28.98 | E114: 28.98
A115: LABIAL MATE 06 VALENCIA | B115: 1 | C115: 46 | D115: 28.98 | E115: 28.98
A116: LABIAL MATE 07 BOGOTA | B116: 1 | C116: 46 | D116: 28.98 | E116: 28.98
A117: LABIAL MATE 08 MARRUECOS | B117: 1 | C117: 46 | D117: 28.98 | E117: 28.98
A118: LABIAL MATE 09 BRUSELAS | B118: 1 | C118: 46 | D118: 28.98 | E118: 28.98
A120: LABIAL HUMECTANTE 01 PATZCUARO | B120: 1 | C120: 38 | D120: =C120-(C120*37%) -> 23.94 | E120: =B120*D120 -> 23.94
A121: LABIAL HUMECTANTE 02 MOCORITO | B121: 1 | C121: 38 | D121: 23.94 | E121: 23.94
A122: LABIAL HUMECTANTE 04 COMALA | B122: 1 | C122: 38 | D122: 23.94 | E122: 23.94
A123: LABIAL HUMECTANTE 05 MAZUNTE | B123: 1 | C123: 38 | D123: 23.94 | E123: 23.94
A124: LABIAL HUMECTANTE 06 TEPOZTLAN | B124: 1 | C124: 38 | D124: 23.94 | E124: 23.94
A125: LABIAL HUMCTANTE 09 JEREZ | B125: 1 | C125: 38 | D125: 23.94 | E125: 23.94
A126: LABIAL HUMECTANTE 14 HUAMATLAN | B126: 1 | C126: 38 | D126: 23.94 | E126: 23.94
A127: LABIAL HUMECTANTE 30 XICO | B127: 1 | C127: 38 | D127: 23.94 | E127: 23.94
A129: MASCARA DE PESTAÑA | B129: 6 | C129: 83 | D129: =C129-(C129*37%) -> 52.29 | E129: =B129*D129 -> 313.74
A130: SACA PUNTAS DUO | B130: 4 | C130: 42 | D130: 26.46 | E130: 105.84
A131: SACA PUNTAS TINTALINE | B131: 2 | C131: 30 | D131: 18.9 | E131: 37.8
A132: BROCHA PROFESIONAL No. 25 | B132: 1 | C132: 87 | D132: N/A | E132: 83
A133: BROCHA PROFESIONAL No. 26 | B133: 1 | C133: 68 | D133: N/A | E133: 64
A134: LIMA 3 PASOS | B134: 6 | C134: 23 | D134: =C134-(C134*37%) -> 14.49 | E134: =B134*D134 -> 86.94
A135: LIMA NEGRA | B135: 6 | C135: 18 | D135: 11.34 | E135: 68.04
A136: LIMA MINI N3GRA | B136: 6 | C136: 14 | D136: 8.82 | E136: 52.92
A138: BRILLO LABIAL JASPE | B138: 1 | C138: 49 | D138: =C138-(C138*37%) -> 30.87 | E138: =B138*D138 -> 30.87
A139: BRILLO LABIAL MORGANITA | B139: 1 | C139: 49 | D139: 30.87 | E139: 30.87
A140: BRILLO LABIAL TURMALINA | B140: 1 | C140: 49 | D140: 30.87 | E140: 30.87
A141: BRILLO LABIAL TOPACIO | B141: 1 | C141: 49 | D141: 30.87 | E141: 30.87
A143: LAPIZ DE CEJA ULTRA FINO 01 MACADAMIA | B143: 3 | C143: 55 | D143: =C143-(C143*37%) -> 34.65 | E143: =B143*D143 -> 103.95
A144: LAPIZ DE CEJA ULTRA FINO 02 CACAHUATE | B144: 3 | C144: 55 | D144: 34.65 | E144: 103.95
A145: LAPIZ DE CEJA ULTRA FINO 03 CASTILLA | B145: 3 | C145: 55 | D145: 34.65 | E145: 103.95
A146: LAPIZ DE CEJA ULTRA FINO 04 ALMENDRA | B146: 3 | C146: 55 | D146: 34.65 | E146: 103.95
A147: LAPIZ DE CEJA ULTRA FINO 05 NUEZ | B147: 3 | C147: 55 | D147: 34.65 | E147: 103.95
A148: LAPIZ DE CEJA ULTRA FINO 06 AVELLANA | B148: 3 | C148: 55 | D148: 34.65 | E148: 103.95
A149: LAPIZ DE CEJA ULTRA FINO 07 CASTAÑA | B149: 2 | C149: 55 | D149: 34.65 | E149: 69.3
A151: TINTALINE DE OJOS 01 NEGRO | B151: 5 | C151: 69 | D151: =C151-(C151*37%) -> 43.47 | E151: =B151*D151 -> 217.35
A152: TINTALINE DE OJOS 01 FIEBRE DE SABADO | B152: 1 | C152: 69 | D152: 43.47 | E152: 43.47
A153: TINTALINE DE OJOS 02 DJ AMARILLO | B153: 1 | C153: 69 | D153: 43.47 | E153: 43.47
A154: TINTALINE DE OJOS 03 DISCOTECA | B154: 1 | C154: 69 | D154: 43.47 | E154: 43.47
A155: TINTALINE DE OJOS 04 FUNK ROSA | B155: 1 | C155: 69 | D155: 43.47 | E155: 43.47
A156: TINTALINE DE OJOS 05 STUDIO 54 | B156: 1 | C156: 69 | D156: 43.47 | E156: 43.47
A157: TINTALINE DE OJOS 06 BOLA DE DISCO | B157: 1 | C157: 69 | D157: 43.47 | E157: 43.47
A158: TINTALINE DE OJOS 07 BOOGIE | B158: 1 | C158: 69 | D158: 43.47 | E158: 43.47
A159: TINTALINE DE OJOS 08 INFERNO FUCSIA | B159: 1 | C159: 69 | D159: 43.47 | E159: 43.47
A160: TINTALINE DE OJOS 02 CAFÉ | B160: 5 | C160: 69 | D160: 43.47 | E160: 217.35
A161: TINTALINE DE OJOS 03 GRIS | B161: 1 | C161: 69 | D161: 43.47 | E161: 43.47
A162: TINTALINE DE OJOS 04 VINO | B162: 1 | C162: 69 | D162: 43.47 | E162: 43.47
A163: TINTALINE DE OJOS 05 MORADO | B163: 1 | C163: 69 | D163: 43.47 | E163: 43.47
A164: TINTALINE DE OJOS 06 AZUL CLARO | B164: 1 | C164: 69 | D164: 43.47 | E164: 43.47
A166: LAPIZ DE CEJAS 01 CHAI | B166: 2 | C166: 102 | D166: =C166-(C166*37%) -> 64.26 | E166: =B166*D166 -> 128.52
A167: LAPIZ DE CEJAS 02 DE OLLA | B167: 2 | C167: 102 | D167: 64.26 | E167: 128.52
A168: LAPIZ DE CEJAS 03 FREPPE | B168: 2 | C168: 102 | D168: 64.26 | E168: 128.52
A169: LAPIZ DE CEJA 04 RISTRETTO | B169: 2 | C169: 102 | D169: 64.26 | E169: 128.52
A170: LAPIZ DE CEJA 05 CORTADO | B170: 2 | C170: 102 | D170: 64.26 | E170: 128.52
A171: LAPIZ DE CEJA 06 ARABE | B171: 2 | C171: 102 | D171: 64.26 | E171: 128.52
A172: LAPIZ DE CEJA 07 LECHERO | B172: 2 | C172: 102 | D172: 64.26 | E172: 128.52
A173: LAPIZ DE CEJA 09 CARIBEÑO | B173: 2 | C173: 102 | D173: 64.26 | E173: 128.52
E174: 0
A175: PLUMIN DELINEADOR NEGRO MATE | B175: 5 | C175: 80 | D175: =C175-(C175*37%) -> 50.4 | E175: 252
A176: PLUMIN DELINEADOR NEGRO | B176: 5 | C176: 80 | D176: 50.4 | E176: 252
A177: PLUMIN DELINEADOR 02 AZUL | B177: 1 | C177: 80 | D177: 50.4 | E177: 50.4
A178: PLUMIN DELINEADOR 04 VERDE | B178: 2 | C178: 80 | D178: 50.4 | E178: 100.8
A179: PLUMIN DELINEADOR 06 GRIS | B179: 1 | C179: 80 | D179: 50.4 | E179: 50.4
A180: PLUMIN DELINEADOR 07 VIOLETA | B180: 2 | C180: 80 | D180: 50.4 | E180: 100.8
A181: PLUMIN DELINEADOR 08 COBRE | B181: 2 | C181: 80 | D181: 50.4 | E181: 100.8
A182: PLUMIN DELINEADOR 09 ORO ROSA | B182: 2 | C182: 80 | D182: 50.4 | E182: 100.8
A183: PLUMIN DELINEADOR 10 PLATA | B183: 2 | C183: 80 | D183: 50.4 | E183: 100.8
A184: PLUMIN DELINEADOR 02 CAFÉ MATE | B184: 2 | C184: 80 | D184: 50.4 | E184: 100.8
A186: DELINEADOR TINTALINE LABIOS 01 FRAMBUESA | B186: 3 | C186: 69 | D186: =C186-(C186*37%) -> 43.47 | E186: =B186*D186 -> 130.41
A187: DELINEADOR TINTALINE LABIOS 02 ROJO QUEMADO | B187: 3 | C187: 69 | D187: 43.47 | E187: 130.41
A188: DELINEADOR TINTALINE LABIOS 03 VINO | B188: 3 | C188: 69 | D188: 43.47 | E188: 130.41
A189: DELINEADOR TINTALINE LABIOS 04 TOSTADO | B189: 3 | C189: 69 | D189: 43.47 | E189: 130.41
A190: DELINEADOR TINTALINE LABIOS 05 NATURAL | B190: 3 | C190: 69 | D190: 43.47 | E190: 130.41
A191: DELINEADOR TINTALINE LABIOS 06 CAFÉ ROJIZO | B191: 3 | C191: 69 | D191: 43.47 | E191: 130.41
A192: DELINEADOR RETRACTIL LABIOS 01 CEREZA | B192: 2 | C192: 40 | D192: 25.2 | E192: 50.4
A193: DELINEADOR RETRACTIL LABIOS 02 FRAMBUESA | B193: 2 | C193: 40 | D193: 25.2 | E193: 50.4
A194: DELINEADOR RETRACTIL LABIOS 03 CHOCOLATE | B194: 2 | C194: 40 | D194: 25.2 | E194: 50.4
A196: DELINEADOR RETRACTIL OJOS 01 NEGRO | B196: 10 | C196: 40 | D196: =C196-(C196*37%) -> 25.2 | E196: =B196*D196 -> 252
A197: DELINEADOR RETRACTIL OJOS 02 CAFÉ | B197: 5 | C197: 40 | D197: 25.2 | E197: 126
A199: ESMALTE 15 ML 01 PIN UP | B199: 1 | C199: 37 | D199: =C199-(C199*37%) -> 23.31 | E199: =B199*D199 -> 23.31
A200: ESMALTE 15 ML 02 ARTICO | B200: 1 | C200: 37 | D200: 23.31 | E200: 23.31
A201: ESMALTE 15 ML 03 REFLEJO DE LUNA | B201: 1 | C201: 37 | D201: 23.31 | E201: 23.31
A202: ESMALTE 15 ML 04 ARGEN | B202: 1 | C202: 37 | D202: 23.31 | E202: 23.31
A203: ESMALTE 15 ML 05 NEGRO | B203: 1 | C203: 37 | D203: 23.31 | E203: 23.31
A204: ESMALTE 15 ML 06 ALGODÓN DE AZUCAR | B204: 1 | C204: 37 | D204: 23.31 | E204: 23.31
A205: ESMALTE 15 ML 07 CHAMPAGNE | B205: 1 | C205: 37 | D205: 23.31 | E205: 23.31
A206: ESMALTE 15 ML 08 LOTO | B206: 1 | C206: 37 | D206: 23.31 | E206: 23.31
A207: ESMALTE 15 ML 09 CORAL | B207: 1 | C207: 37 | D207: 23.31 | E207: 23.31
A208: ESMALTE 15 ML 10 BUGAMBILIA | B208: 1 | C208: 37 | D208: 23.31 | E208: 23.31
A209: ESMALTE 15 ML 11 MANZANA ACARAMELADA | B209: 1 | C209: 37 | D209: 23.31 | E209: 23.31
A210: ESMALTE 15 ML 12 BERRY | B210: 1 | C210: 37 | D210: 23.31 | E210: 23.31
A211: ESMALTE 15 ML 13 IBIZA | B211: 1 | C211: 37 | D211: 23.31 | E211: 23.31
A212: ESMALTE 15 ML 14 BERMELLON | B212: 1 | C212: 37 | D212: 23.31 | E212: 23.31
A213: ESMALTE 15 ML 15 RUBI | B213: 1 | C213: 37 | D213: 23.31 | E213: 23.31
A214: ESMALTE 15 ML 305 ARCOIRIS | B214: 1 | C214: 37 | D214: 23.31 | E214: 23.31
A215: ESMALTE 15 ML 358 INTERGALACTICO | B215: 1 | C215: 37 | D215: 23.31 | E215: 23.31
A216: ESMALTE 15 ML 406 LE MARIAGE | B216: 1 | C216: 37 | D216: 23.31 | E216: 23.31
A218: ESMALTE MINI 01 PIN UP | B218: 1 | C218: 19 | D218: =C218-(C218*37%) -> 11.97 | E218: =B218*D218 -> 11.97
A219: ESMALTE MINI 02 ARTICO | B219: 1 | C219: 19 | D219: 11.97 | E219: 11.97
A220: ESMALTE MINI 03 REFLEJO DE LUNA | B220: 1 | C220: 19 | D220: 11.97 | E220: 11.97
A221: ESMALTE MINI 04 ARGEN | B221: 1 | C221: 19 | D221: 11.97 | E221: 11.97
A222: ESMALTE MINI 05 NEGRO | B222: 1 | C222: 19 | D222: 11.97 | E222: 11.97
A223: ESMALTE MINI 06 ALGODÓN DE AZUCAR | B223: 1 | C223: 19 | D223: 11.97 | E223: 11.97
A224: ESMALTE MINI 07 CHAMPAGNE | B224: 1 | C224: 19 | D224: 11.97 | E224: 11.97
... 28 more rows
